Cogmind - Beta 14 @@@ ROGUE MODE // 2024.08.11 @ 19:28:40 Player: Compilatron Result: Destroyed by P-80 Master with Gamma Rifle Performance ------------- Evolutions (7) 3500 Regions Visited (17) 3400 Robots Destroyed (110) 550 Value Destroyed (4146) 4146 Prototype IDs (16) 320 Alien Tech Used (0) 0 Bonus (2282) 2282 TOTAL SCORE: 14198 Bonus ------- High Alert Combat Kills 12 Follower Combat Kills 1583 Network Hubs Disabled 200 Registered with UFD 300 Built Enhanced Grunts 300 Friendly Fire -113 Cogmind --------- Core Integrity 0/1300 Matter 300/300 Energy 340/340 System Corruption 7% Temperature Cool (0) Movement Core (650) Ox12 Location -3/Research Parts ------- > --- POWER (1) -------- Particle Reactor > --- PROPULSION (8) --- (None) > --- UTILITY (8) ------ Large Storage Unit High-powered Tractor Beam > --- WEAPON (4) ------- (None) > --- INVENTORY (15) --- Micro Fission Core Light Antimatter Reactor Energy Well (350) System Restoration Module Peak State ------------ > --- POWER ------------ Light Quantum Reactor > --- PROPULSION ------- Nuclear Pulse Array Nuclear Pulse Array Nuclear Pulse Array Nuclear Pulse Array > --- UTILITY ---------- Large Storage Unit Advanced Visual Processing Unit Enhanced Optical Array Advanced Sensor Array Advanced Terrain Scanner Improved Hacking Suite Advanced System Restoration Module > --- WEAPON ----------- Enhanced Coil Gun Improved Datajack > --- INVENTORY -------- Micro Fission Core Light Antimatter Reactor Light Quantum Reactor Energy Well Matter Compressor Improved Sensor Array Surveybot 17 Chip Improved Target Analyzer Core Analyzer Centrium Medium Armor Plating Improved Force Field Matter Neutralizer Hardcell Cannon [Rating: 105] Favorites ----------- Power Heavy Ion Engine Engine Heavy Ion Engine Power Core Fission Core Reactor Light Antimatter Reactor Propulsion Light Treads Treads Light Treads Leg Flexi-carbon Leg Wheel Wheel Flight Unit Nuclear Pulse Array Utility Huge Storage Unit Device Improved Sensor Array Storage Huge Storage Unit Processor Advanced Visual Processing Unit Hackware Improved Hacking Suite Protection Light Armor Plating Weapon Gatling Laser Energy Gun Gatling Laser Energy Cannon Advanced Plasma Cannon Ballistic Gun Heavy Assault Rifle Ballistic Cannon Bore Cannon Launcher Rocket Launcher Special Weapon Plasma Cutter Slashing Weapon Dual-blade Saw Special Melee Weapon Improved Datajack Build | -11 -10 -9 -9 -9 -9 -6 -6 -6 -6 -6 -5 -5 -5 -4 -4 -4 -3 ------- Run | Yrd Mat Mat Sto Rec Scr Fac Ext Cet Arc Hub Fac Upp Upp Fac Upp Upp Res Slots Evolved 14 | . . 2 . . . 6 . . . . 2 . . 2 . . 2 Power . | . . . . . . . . . . . . . . . . . . Propulsion 6 | . . 2 . . . 2 . . . . . . . 2 . . . Utility 6 | . . . . . . 4 . . . . 1 . . . . . 1 Weapon 2 | . . . . . . . . . . . 1 . . . . . 1 Parts Attached 191 | . 17 15 21 1 2 22 15 8 1 2 21 . . 16 22 1 27 Power 19 | . 2 1 2 . . 1 . 1 . . 1 . . 5 1 . 5 Engine 7 | . 2 1 1 . . . . 1 . . . . . 2 . . . Core 6 | . . . 1 . . 1 . . . . 1 . . 1 . . 2 Reactor 6 | . . . . . . . . . . . . . . 2 1 . 3 Propulsion 48 | . 7 7 4 . . 3 6 . . 1 4 . . 1 6 1 8 Treads 23 | . 4 6 4 . . 3 4 . . . . . . . . . 2 Leg 18 | . 2 . . . . . 2 . . 1 1 . . . 6 . 6 Wheel 1 | . 1 . . . . . . . . . . . . . . . . Hover . | . . . . . . . . . . . . . . . . . . Flight 6 | . . 1 . . . . . . . . 3 . . 1 . 1 . Utility 61 | . 4 2 2 . 1 10 1 2 1 . 13 . . 9 8 . 8 Device 34 | . 2 1 . . . 8 1 1 1 . 3 . . 6 5 . 6 Storage 11 | . 2 1 . . . . . . . . 5 . . 1 . . 2 Processor 6 | . . . . . 1 1 . . . . 1 . . . 3 . . Hackware 5 | . . . . . . 1 . . . . 3 . . 1 . . . Protection 5 | . . . 2 . . . . 1 . . 1 . . 1 . . . Artifact . | . . . . . . . . . . . . . . . . . . Weapon 63 | . 4 5 13 1 1 8 8 5 . 1 3 . . 1 7 . 6 Energy Gun 21 | . 3 1 4 1 1 2 3 2 . . . . . . 1 . 3 Energy Cannon 2 | . . . . . . . . . . . . . . . 2 . . Ballistic Gun 21 | . 1 3 5 . . 4 1 1 . . 3 . . . 1 . 2 Ballistic Cannon 3 | . . . . . . . . . . . . . . 1 2 . . Launcher 3 | . . 1 1 . . . . 1 . . . . . . . . . Special Weapon 5 | . . . 3 . . . 1 1 . . . . . . . . . Impact Weapon . | . . . . . . . . . . . . . . . . . . Slashing Weapon 2 | . . . . . . . . . . . . . . . 1 . 1 Piercing Weapon . | . . . . . . . . . . . . . . . . . . Special Melee Weapon 6 | . . . . . . 2 3 . . 1 . . . . . . . Unidentified Prototypes 6 | . . 1 2 . . . . 1 . . 1 . . 1 . . . Corrupted Parts 3 | . . . . . . . 3 . . . . . . . . . . System Corruption 21 | . . . . . . . 21 . . . . . . . . . . Parts Lost 89 | . 7 4 8 . . 1 7 4 . 4 . 1 . 15 17 4 17 Power 9 | . 2 . 1 . . . . 1 . . . . . 2 1 . 2 Propulsion 36 | . 2 2 4 . . 1 7 . . 3 . . . 4 6 1 6 Utility 24 | . 1 2 1 . . . . 1 . 1 . . . 7 7 . 4 Weapon 20 | . 2 . 2 . . . . 2 . . . 1 . 2 3 3 5 Highest Loss Streak 17 | . 5 2 3 . . 1 4 4 . 4 . 1 . 12 17 3 7 To Critical Strikes 3 | . 1 1 . . . . . 1 . . . . . . . . . Average Slot Usage (%) 79 | . 91 94 96 100 77 90 85 79 74 80 80 76 76 69 33 11 28 Engine 7 | . 11 11 8 11 11 1 . 5 6 6 3 . . 1 . . . Core 1 | . . . 2 . . 4 6 . . . 1 5 5 1 . . 1 Treads 32 | . 20 41 43 44 44 39 28 26 21 20 . . . . . . . Leg 1 | . 4 . . . . . 3 . . 6 1 . . . 8 . 8 Flight 1 | . . . . . . . . . . . 14 17 17 19 . 3 . Device 5 | . 10 8 . . . 15 13 6 7 13 7 5 5 12 10 . 5 Storage 8 | . 14 11 11 11 11 6 6 6 6 6 4 5 5 5 . . 1 Processor 5 | . . . . . 9 4 6 6 6 6 7 11 11 10 6 . . Hackware 2 | . . . . . . 4 6 6 6 6 17 17 17 5 . . . Protection 2 | . . . 8 11 1 . . 5 4 . . . . . . . . Energy Gun 5 | . 21 10 9 11 . 3 5 5 6 6 5 . . . . . 3 Ballistic Gun 4 | . 5 11 11 11 . 7 5 5 6 4 5 5 5 4 . . 1 Peak Build Rating 105 | . 10 15 19 19 19 45 63 63 61 61 88 88 84 105 86 18 51 Average Rating 30 | . 7 13 17 19 15 42 48 60 59 60 81 84 84 94 32 11 32 On Entrance 34 | 6 6 10 13 19 19 16 45 63 61 55 37 88 84 84 2 18 1 Naked Turns 109 | . . . . . . . . . . . . . . 2 73 16 18 Heaviest Build 114 | 13 90 94 97 97 97 114 103 112 112 106 104 31 31 51 43 18 43 Greatest Support 120 | 20 40 80 80 80 80 120 120 110 110 90 39 39 39 52 120 4 85 Greatest Overweight (x) 34 | . 8 1 1 1 1 1 34 1 1 32 2 . . 13 8 5 9 Average Overweight (x) . | . 1 . 1 1 1 . . . 1 1 . . . . . 1 1 Largest Inventory Capacity 25 | . 25 25 25 25 25 25 25 25 25 25 25 10 10 15 5 5 15 Average Capacity 21 | . 15 19 25 25 25 25 25 25 25 25 11 10 10 14 5 5 9 Most Carried 25 | . 7 15 25 25 25 24 18 18 17 18 22 10 10 13 5 5 9 Average Carried 17 | . 5 10 22 25 24 15 16 15 16 17 9 10 10 9 4 5 3 Final Capacity 25 | 8 10 25 25 25 25 25 25 25 25 25 10 10 10 5 5 5 15 Final Carried 25 | 6 7 14 25 25 25 16 17 15 17 18 10 10 10 5 5 5 4 Class Distribution -------------------- 82% | Scavenger-Mutant 8% | Mutant 3% | Hacker-Mutant Dominant Class ---------------- Mutant | -10/Materials Scavenger-Mutant | -9/Materials Scavenger-Mutant | -9/Storage Scavenger-Mutant | -9/Recycling Scavenger-Mutant | -9/Scraptown Scavenger-Mutant | -6/Factory Scavenger-Mutant | -6/Extension Scavenger-Mutant | -6/Cetus Scavenger-Mutant | -6/Archives Scavenger-Mutant | -6/Hub_04(d) Hacker-Mutant | -5/Factory Hacker-Mutant | -5/Upper Caves Hacker-Mutant | -5/Upper Caves Scout | -4/Factory Mutant | -4/Upper Caves Mutant | -4/Upper Caves Scavenger-Mutant | -3/Research Resources | -11 -10 -9 -9 -9 -9 -6 -6 -6 -6 -6 -5 -5 -5 -4 -4 -4 -3 ----------- Run | Yrd Mat Mat Sto Rec Scr Fac Ext Cet Arc Hub Fac Upp Upp Fac Upp Upp Res Matter Collected 3896 | 200 165 230 558 . 215 327 505 82 209 132 266 77 . 256 262 89 323 Remotely 29 | . . . . . . . . . . . . . . . . . 29 Salvage Created 4702 | . 541 747 855 . . 448 371 65 47 41 . 117 . 346 378 64 682 Parts 246 | . 45 51 64 . . 22 12 3 . 1 . 5 . 12 11 2 18 Haulers Intercepted 6 | . 1 2 . . . . . . . . . . . 2 . . 1 Recyclers Shooed 2 | . . . . . . . . . . . . . . 2 . . . Parts Field Recycled . | . . . . . . . . . . . . . . . . . . Retrieved Matter . | . . . . . . . . . . . . . . . . . . Parts Self-Destructed 24 | . . . . . . . . . . . . 5 . . 16 3 . Prevented 2 | . . . . . . . . . . . . . . . 2 . . Kills | -11 -10 -9 -9 -9 -9 -6 -6 -6 -6 -6 -5 -5 -5 -4 -4 -4 -3 ------- Run | Yrd Mat Mat Sto Rec Scr Fac Ext Cet Arc Hub Fac Upp Upp Fac Upp Upp Res Combat Hostiles Destroyed 88 | . 16 16 18 . . 6 5 3 1 1 . 3 . 2 7 4 6 Melee 2 | . . . . . . . . . . . . . . . 2 . . Guns 73 | . 14 15 15 . . 6 5 3 1 1 . 3 . 2 2 . 6 Cannons 7 | . . . . . . . . . . . . . . . 3 4 . AOE 4 | . . 1 3 . . . . . . . . . . . . . . Classes Destroyed 12 | . 5 1 1 . . 2 1 . . . . . . . 2 . . Worker 2 | . 1 . . . . . . . . . . . . . . . 1 Hauler 6 | . 1 2 . . . . . . . . . . . 2 . . 1 Recycler 5 | . . . 2 . . 1 1 . . . . . . . . . 1 Watcher 9 | . 3 2 2 . . . . 1 . . . . . 1 . . . Swarmer 28 | . 9 3 5 . . . 2 . . . . 2 . . 2 4 1 Grunt 25 | . 7 8 2 . . 1 . . . 1 . . . . 2 . 4 Brawler 2 | . . . . . . . . . . . . . . . 2 . . Duelist 1 | . . . . . . . . . . . . . . . 1 . . Sentry 23 | . . 5 11 . . 2 2 . 1 . . 1 . . . . 1 Hunter 2 | . . . . . . 2 . . . . . . . . . . . Programmer 3 | . . . . . . 1 . . . . . . . 2 . . . Behemoth 1 | . . . . . . . 1 . . . . . . . . . . Cetus Guard 3 | . . . . . . . . 3 . . . . . . . . . Best Kill Streak 10 | . 10 3 4 . . 2 1 3 1 1 . 3 . 2 5 2 3 Combat Bots Only 9 | . 9 3 4 . . 1 1 3 1 1 . 3 . 2 5 2 3 Max Kills in Single Turn 3 | . 2 2 3 . . 2 1 1 1 1 . 1 . 1 1 1 1 Gunslinging 1 | . . 1 . . . . . . . . . . . . . . . Exploded 3 | . . 1 3 . . . . . . . . . . . . . . Melee 1 | . . . . . . . . . . . . . . . 1 . . Uniques/NPCs Destroyed . | . . . . . . . . . . . . . . . . . . Combat | -11 -10 -9 -9 -9 -9 -6 -6 -6 -6 -6 -5 -5 -5 -4 -4 -4 -3 -------- Run | Yrd Mat Mat Sto Rec Scr Fac Ext Cet Arc Hub Fac Upp Upp Fac Upp Upp Res Hostile Shots Fired 1147 | . 127 111 122 . . 89 37 61 2 35 6 14 . 176 102 45 220 Missed 383 | . 40 31 51 . . 25 12 21 1 9 2 5 . 72 26 14 74 Damage Taken 13686 | . 896 991 911 . . 691 762 1085 71 498 62 178 . 1831 1931 498 3281 Core 3306 | . 147 174 50 . . 21 135 132 . 114 15 56 . 476 492 176 1318 Absorbed by Shields 114 | . . . . . . . 54 . . . . . . . 60 . . Regen/Repaired (Parts) 257 | . . . 73 . . 30 85 . 20 20 29 . . . . . . Core Remaining (%) 54 | 100 41 . . . 44 . . . . 52 . . 92 . . . . Volleys Fired 445 | . 65 71 65 . . 19 27 22 5 7 1 11 . 39 25 13 75 Largest 2 | . 2 2 2 . . 2 2 2 2 2 2 2 . 1 2 2 2 Hottest 151 | . 100 85 88 . . 108 108 108 108 108 113 110 . 30 98 138 151 Shots Fired 692 | . 110 133 124 . . 38 46 33 10 14 2 12 . 39 26 14 91 Gun 658 | . 110 132 123 . . 38 46 27 10 14 2 12 . 39 14 . 91 Cannon 26 | . . . . . . . . . . . . . . . 12 14 . Launcher 8 | . . 1 1 . . . . 6 . . . . . . . . . Special . | . . . . . . . . . . . . . . . . . . Kinetic 329 | . 6 72 66 . . 26 27 15 5 6 1 11 . 39 22 13 20 Thermal 354 | . 104 60 57 . . 12 19 12 5 8 1 1 . . 4 . 71 Explosive 8 | . . 1 1 . . . . 6 . . . . . . . . . Electromagnetic 1 | . . . . . . . . . . . . . . . . 1 . Robot Hit Streak 13 | . 5 12 10 . . 13 4 6 6 4 . 3 . 8 6 5 12 Robot Miss Streak 11 | . 4 2 3 . . 2 7 11 4 4 7 10 . 3 2 2 4 Penetration Max 1 | . . . . . . 1 . . . . . . . 1 . 1 . Secondary Targets 8 | . 1 4 1 . . . 1 1 . . . . . . . . . Max Gunslinging Chain 1 | . 1 1 1 . . . 1 1 . . . . . . . . . Shots Hit Robots 482 | . 59 91 88 . . 32 29 26 9 12 . 7 . 28 26 9 66 Core Hits 253 | . 28 34 35 . . 21 22 34 9 12 . 4 . 11 11 4 28 Critical Kills 4 | . . . . . . 2 . . . . . . . . . 2 . Critical Parts Destroyed 6 | . . . . . . . . . . . . . . 2 . 4 . Critical Strikes 28 | . 7 3 2 . . 2 . . . . . . . 2 3 6 3 Burn 14 | . 7 3 2 . . . . . . . . . . . . . 2 Destroy 10 | . . . . . . 2 . . . . . . . 2 . 6 . Blast 3 | . . . . . . . . . . . . . . . 3 . . Sever 1 | . . . . . . . . . . . . . . . . . 1 Melee Attacks 18 | . . . . . . . 2 . . 2 . . . 3 7 . 4 Impact . | . . . . . . . . . . . . . . . . . . Slashing 11 | . . . . . . . . . . . . . . . 7 . 4 Piercing . | . . . . . . . . . . . . . . . . . . Sneak Attacks 9 | . . . . . . . 2 . . 2 . . . 3 2 . . Combat Hostiles 2 | . . . . . . . . . . . . . . . 2 . . Follow-up Attacks . | . . . . . . . . . . . . . . . . . . Damage Inflicted 9991 | . 773 1407 1533 . . 657 702 782 188 225 . 216 . 893 906 254 1455 Guns 8319 | . 772 1308 1324 . . 657 670 456 188 225 . 216 . 893 237 . 1373 Cannons 643 | . . . . . . . . . . . . . . . 389 254 . Explosions 620 | . . 99 195 . . . . 326 . . . . . . . . . Melee 349 | . . . . . . . . . . . . . . . 280 . 69 Ramming 60 | . 1 . 14 . . . 32 . . . . . . . . . 13 Kinetic 4777 | . 22 752 672 . . 382 260 262 87 99 . 216 . 893 577 254 301 Thermal 4185 | . 750 556 652 . . 275 410 194 101 126 . . . . 49 . 1072 Explosive 620 | . . 99 195 . . . . 326 . . . . . . . . . Electromagnetic . | . . . . . . . . . . . . . . . . . . Impact . | . . . . . . . . . . . . . . . . . . Slashing 349 | . . . . . . . . . . . . . . . 280 . 69 Piercing . | . . . . . . . . . . . . . . . . . . Highest Corruption 25 | . . . . . . . 21 21 21 25 . . . 3 21 21 7 Average Corruption 19 | . . . . . . . 19 21 21 21 . . . 1 19 21 4 Corruption Purged 3 | . . . . . . . . . . . . . . 3 . . . Corruption Blocked . | . . . . . . . . . . . . . . . . . . Effects 108 | . . . . . . . 12 37 12 31 . . . 1 9 5 1 Message Errors 30 | . . . . . . . 4 8 4 8 . . . . 2 4 . Matter Fused 22 | . . . . . . . 3 7 4 6 . . . . 1 . 1 Heat Flow Errors 12 | . . . . . . . . 3 1 6 . . . . 2 . . Energy Discharges 13 | . . . . . . . 1 4 1 6 . . . . 1 . . Parts Rejected 2 | . . . . . . . . 1 1 . . . . . . . . Parts Fused 1 | . . . . . . . . . . . . . . . . 1 . Data Loss (minor) 10 | . . . . . . . 1 2 1 2 . . . 1 3 . . Data Loss (major) 5 | . . . . . . . . 5 . . . . . . . . . Misfires 5 | . . . . . . . 2 2 . 1 . . . . . . . Alerts 4 | . . . . . . . . 3 . 1 . . . . . . . Misdirections 1 | . . . . . . . . . . 1 . . . . . . . Weapon Failures 3 | . . . . . . . 1 2 . . . . . . . . . Overload Shots . | . . . . . . . . . . . . . . . . . . Overflow Damage 51 | . . 41 5 . . . 2 . . . . . . . . 3 . Projectiles 3 | . . . . . . . . . . . . . . . . 3 . Explosions 46 | . . 41 5 . . . . . . . . . . . . . . Melee 2 | . . . . . . . 2 . . . . . . . . . . Knockbacks 5 | . . . . . . . 1 . . . . . . . 1 3 . Impact 1 | . . . . . . . 1 . . . . . . . . . . Kinetic 3 | . . . . . . . . . . . . . . . 1 2 . Secondary 1 | . . . . . . . . . . . . . . . . 1 . Self-Inflicted Damage . | . . . . . . . . . . . . . . . . . . Shots . | . . . . . . . . . . . . . . . . . . Rammed 7 | . 1 . 1 . . . 1 . . . . . . . . . 4 Targets Rammed 11 | . 1 . 2 . . . 1 . . . . . . . . . 7 Kicked 3 | . . . . . . . . . . . . . . . . . 3 Crushed 1 | . . . 1 . . . . . . . . . . . . . . Highest Temperature 378 | . 312 128 331 . . 63 378 201 63 212 39 30 . 19 216 9 31 Average Temperature 69 | . 77 34 86 . . 24 134 50 36 84 24 16 . 10 60 6 12 Received Heat Transfer 2385 | . 279 351 231 . . 126 419 . 9 99 . . . 45 254 27 545 Effects 7 | . 3 . 1 . . . 3 . . . . . . . . . . Shutdowns 2 | . . . . . . . 2 . . . . . . . . . . Energy Bleed 2 | . 2 . . . . . . . . . . . . . . . . Interference 1 | . 1 . . . . . . . . . . . . . . . . Matter Decay 2 | . . . 1 . . . 1 . . . . . . . . . . Siege Activations . | . . . . . . . . . . . . . . . . . . Robots Corrupted 1 | . . . . . . . 1 . . . . . . . . . . Combat Hostiles . | . . . . . . . . . . . . . . . . . . Parts Fried 5 | . . . . . . . 5 . . . . . . . . . . Impact Corruptions 1 | . . . . . . . 1 . . . . . . . . . . Robots Melted 2 | . 2 . . . . . . . . . . . . . . . . Combat Hostiles 2 | . 2 . . . . . . . . . . . . . . . . Parts Melted 26 | . 7 . 8 . . 2 1 . . . . . . . . . 8 Heat Transferred 10690 | . 2654 1628 1813 . . 575 850 450 225 275 . . . . 111 . 2109 Parts Sabotaged . | . . . . . . . . . . . . . . . . . . Parts Stolen . | . . . . . . . . . . . . . . . . . . Parts Stripped . | . . . . . . . . . . . . . . . . . . Power Chain Reactions . | . . . . . . . . . . . . . . . . . . Alert | -11 -10 -9 -9 -9 -9 -6 -6 -6 -6 -6 -5 -5 -5 -4 -4 -4 -3 ------- Run | Yrd Mat Mat Sto Rec Scr Fac Ext Cet Arc Hub Fac Upp Upp Fac Upp Upp Res Peak Influence 701 | . 302 268 382 85 . 132 560 302 207 701 434 . . 337 . . 177 Initial 328 | . . 53 59 76 . . 14 251 48 72 328 . . 152 . . 98 Average 178 | . 167 117 191 55 . 45 258 208 189 373 292 . . 238 . . 83 Maximum Alert Level 3 | . 1 1 1 . . . 2 1 1 3 2 . . 1 . . . Low Security (%) 59 | . 55 82 48 100 . 100 40 48 19 28 27 . . 25 . . 100 Level 1 32 | . 44 17 51 . . . 28 51 80 1 56 . . 74 . . . Level 2 8 | . . . . . . . 30 . . 69 16 . . . . . . Level 3 . | . . . . . . . . . . . . . . . . . . Level 4 . | . . . . . . . . . . . . . . . . . . Level 5 . | . . . . . . . . . . . . . . . . . . High Security . | . . . . . . . . . . . . . . . . . . Max Security . | . . . . . . . . . . . . . . . . . . Squads Dispatched 20 | . 4 1 1 . . 2 5 . . 4 1 . . . . . 2 Investigation 5 | . 2 . . . . . 1 . . 1 1 . . . . . . Extermination 3 | . . . . . . 1 . . . . . . . . . . 2 Reinforcement 12 | . 2 1 1 . . 1 4 . . 3 . . . . . . . Assault . | . . . . . . . . . . . . . . . . . . Garrison . | . . . . . . . . . . . . . . . . . . Intercept . | . . . . . . . . . . . . . . . . . . Searches Triggered . | . . . . . . . . . . . . . . . . . . Construction Impeded 3 | . . . . . . . 2 . . 1 . . . . . . . Haulers Reinforced 1 | . . . . . . . . . . 1 . . . . . . . Active Scanning Responses . | . . . . . . . . . . . . . . . . . . Cargo Convoy Interrupts . | . . . . . . . . . . . . . . . . . . Stealth | -11 -10 -9 -9 -9 -9 -6 -6 -6 -6 -6 -5 -5 -5 -4 -4 -4 -3 --------- Run | Yrd Mat Mat Sto Rec Scr Fac Ext Cet Arc Hub Fac Upp Upp Fac Upp Upp Res Distress Signals 13 | . 4 1 2 . . . 2 1 . . 2 . . . . . 1 Communications Jammed . | . . . . . . . . . . . . . . . . . . Distress Signals . | . . . . . . . . . . . . . . . . . . Times Spotted 222 | . 28 22 26 . . 6 29 5 2 14 10 2 . 26 14 11 27 Peak Tracking Total 17 | . 7 3 5 . . 2 7 5 2 4 5 2 . 17 9 5 10 Tactical Retreats 21 | . 3 1 1 . . 1 2 . . . 1 . . 3 5 2 2 Traps | -11 -10 -9 -9 -9 -9 -6 -6 -6 -6 -6 -5 -5 -5 -4 -4 -4 -3 ------- Run | Yrd Mat Mat Sto Rec Scr Fac Ext Cet Arc Hub Fac Upp Upp Fac Upp Upp Res Traps Triggered 7 | . 1 . 1 . . . . . . . 2 . . 1 . . 2 Indirectly . | . . . . . . . . . . . . . . . . . . Trap Hack Attempts 60 | . . . . . . 19 7 . . 34 . . . . . . . Triggered . | . . . . . . . . . . . . . . . . . . Disarmed 3 | . . . . . . . 2 . . 1 . . . . . . . Reprogrammed 11 | . . . . . . 7 . . . 4 . . . . . . . Reused . | . . . . . . . . . . . . . . . . . . Traps Extracted . | . . . . . . . . . . . . . . . . . . Installed . | . . . . . . . . . . . . . . . . . . Triggered 7 | . . . . . . . . . . . . . . . 7 . . Machines | -11 -10 -9 -9 -9 -9 -6 -6 -6 -6 -6 -5 -5 -5 -4 -4 -4 -3 ---------- Run | Yrd Mat Mat Sto Rec Scr Fac Ext Cet Arc Hub Fac Upp Upp Fac Upp Upp Res Machines Disabled 11 | . . . 4 . . . 1 1 1 2 1 . . 1 . . . Max in Single Turn 1 | . . . 1 . . . 1 1 . . . . . 1 . . . Garrison Access 2 | . . . 1 . . . . . . . 1 . . . . . . Network Hub 1 | . . . . . . . . . . 1 . . . . . . . Energy Cycler 1 | . . . . . . . 1 . . . . . . . . . . Machines Repaired . | . . . . . . . . . . . . . . . . . . Machines Dismantled 5 | . . . 3 . . . 1 1 . . . . . . . . . Machines Sabotaged 1 | . . . . . . . . . . 1 . . . . . . . Overloaded Fab Kills . | . . . . . . . . . . . . . . . . . . Hacking | -11 -10 -9 -9 -9 -9 -6 -6 -6 -6 -6 -5 -5 -5 -4 -4 -4 -3 --------- Run | Yrd Mat Mat Sto Rec Scr Fac Ext Cet Arc Hub Fac Upp Upp Fac Upp Upp Res Machines Accessed 66 | . 5 6 14 5 10 4 2 2 1 3 12 . . 2 . . . Terminals 37 | . 4 4 10 3 . 3 2 2 . 3 6 . . . . . . Fabricators 5 | . . . . . . 1 . . . . 3 . . 1 . . . Repair Stations 3 | . . . 2 . . . . . . . 1 . . . . . . Recycling Units 6 | . 1 1 1 2 . . . . . . . . . 1 . . . Scanalyzers 1 | . . 1 . . . . . . . . . . . . . . . Garrison Access 3 | . . . 1 . . . . . . . 2 . . . . . . Total Hacks 243 | . 16 20 34 16 55 10 4 4 8 11 59 . . 6 . . . Successful 154 | . 4 12 20 11 55 3 1 1 8 6 31 . . 2 . . . Failed 89 | . 12 8 14 5 . 7 3 3 . 5 28 . . 4 . . . Catastrophic 9 | . 1 1 . . . 2 . 1 . 1 3 . . . . . . Database Lockouts . | . . . . . . . . . . . . . . . . . . Manual 73 | . 10 7 11 7 . 4 . 1 2 9 20 . . 2 . . . Terminals 133 | . 14 14 25 11 . 8 4 4 . 11 42 . . . . . . Fabricators 10 | . . . . . . 2 . . . . 5 . . 3 . . . Repair Stations 13 | . . . 5 . . . . . . . 8 . . . . . . Recycling Units 17 | . 2 4 3 5 . . . . . . . . . 3 . . . Scanalyzers 2 | . . 2 . . . . . . . . . . . . . . . Garrison Access 5 | . . . 1 . . . . . . . 4 . . . . . . Terminal Hacks 112 | . 2 6 12 5 55 3 1 1 8 3 16 . . . . . . Record 59 | . . . . . 48 . . 1 8 . 2 . . . . . . Part Schematic 5 | . . . 2 2 . . . . . . 1 . . . . . . Robot Analysis 7 | . . . . . 6 . . . . . 1 . . . . . . Open Door 4 | . . . 3 . . . 1 . . . . . . . . . . Branch Access Points 2 | . . 1 . . . . . . . . 1 . . . . . . Emergency Access Points 2 | . . 1 . . . . . . . . 1 . . . . . . Terminal Index 1 | . . . . . . . . . . . 1 . . . . . . Scanalyzer Index 1 | . . . 1 . . . . . . . . . . . . . . Alert Level 7 | . . 1 2 1 . 1 . . . 1 1 . . . . . . Unreport Threat 2 | . . . . . . . . . . . 2 . . . . . . Locate Traps 7 | . 2 . 2 . . . . . . 1 2 . . . . . . Reprogram Traps 1 | . . . . . . 1 . . . . . . . . . . . Dispatch Records 2 | . . . . 1 . . . . . . 1 . . . . . . Recall Investigation 1 | . . . . . . . . . . . 1 . . . . . . Hauler Manifests 2 | . . 1 1 . . . . . . . . . . . . . . Registered Components 1 | . . . . . . . . . . . 1 . . . . . . Zone Layout 7 | . . 2 1 1 . 1 . . . 1 1 . . . . . . Derelict Proto ID Bank 1 | . . . . . 1 . . . . . . . . . . . . Fabricator Hacks 5 | . . . . . . . . . . . 4 . . 1 . . . Network Status 3 | . . . . . . . . . . . 3 . . . . . . Load Schematic 1 | . . . . . . . . . . . 1 . . . . . . Build 1 | . . . . . . . . . . . . . . 1 . . . Repair Station Hacks 7 | . . . 2 . . . . . . . 5 . . . . . . Scan Component 4 | . . . 1 . . . . . . . 3 . . . . . . Repair 3 | . . . 1 . . . . . . . 2 . . . . . . Recycling Unit Hacks 3 | . . 1 . 2 . . . . . . . . . . . . . Report Inventory 1 | . . . . 1 . . . . . . . . . . . . . Retrieve Components 2 | . . 1 . 1 . . . . . . . . . . . . . Scanalyzer 1 | . . 1 . . . . . . . . . . . . . . . Insert Component 1 | . . 1 . . . . . . . . . . . . . . . Garrison Access Hacks 2 | . . . 1 . . . . . . . 1 . . . . . . Seal Access 2 | . . . 1 . . . . . . . 1 . . . . . . Unauthorized Hacks 24 | . 2 4 5 4 . . . . . 3 5 . . 1 . . . Terminals 20 | . 2 3 4 3 . . . . . 3 5 . . . . . . Assimilate 2 | . 1 . . . . . . . . . 1 . . . . . . Botnet 12 | . 1 2 3 2 . . . . . 1 3 . . . . . . Operators 5 | . . 1 1 1 . . . . . 1 1 . . . . . . Sabotage 1 | . . . . . . . . . . 1 . . . . . . . Fabricators . | . . . . . . . . . . . . . . . . . . Repair Stations . | . . . . . . . . . . . . . . . . . . Recycling Units 4 | . . 1 1 1 . . . . . . . . . 1 . . . Reject 4 | . . 1 1 1 . . . . . . . . . 1 . . . Scanalyzers . | . . . . . . . . . . . . . . . . . . Garrison Access . | . . . . . . . . . . . . . . . . . . Data Cores Recovered 1 | . . . . . . . . . . 1 . . . . . . . Used . | . . . . . . . . . . . . . . . . . . Hacking Detections 44 | . 5 5 10 4 . 4 2 1 . 3 8 . . 2 . . . Full Trace Events 2 | . 1 . . . . . . . . . 1 . . . . . . Feedback Events . | . . . . . . . . . . . . . . . . . . Feedback Blocked . | . . . . . . . . . . . . . . . . . . Robot Schematics Acquired . | . . . . . . . . . . . . . . . . . . Robots Built . | . . . . . . . . . . . . . . . . . . Authchips . | . . . . . . . . . . . . . . . . . . Time . | . . . . . . . . . . . . . . . . . . Total Robot Build Rating . | . . . . . . . . . . . . . . . . . . Part Schematics Acquired 5 | . . . 2 2 . . . . . . 1 . . . . . . Parts Built 2 | . . . . . . . . . . . . . . 2 . . . Authchips . | . . . . . . . . . . . . . . . . . . Time 69 | . . . . . . . . . . . . . . 69 . . . Total Part Build Rating 18 | . . . . . . . . . . . . . . 18 . . . Parts Repaired 3 | . . . 1 . . . . . . . 2 . . . . . . Time 79 | . . . 32 . . . . . . . 47 . . . . . . Parts Recycled . | . . . . . . . . . . . . . . . . . . Recycled Matter . | . . . . . . . . . . . . . . . . . . Retrieved Matter . | . . . . . . . . . . . . . . . . . . Retrieved Components 11 | . . 9 . 2 . . . . . . . . . . . . . Parts Scanalyzed 1 | . . 1 . . . . . . . . . . . . . . . Part Schematics Acquired . | . . . . . . . . . . . . . . . . . . Parts Damaged . | . . . . . . . . . . . . . . . . . . Bothacking | -11 -10 -9 -9 -9 -9 -6 -6 -6 -6 -6 -5 -5 -5 -4 -4 -4 -3 ------------ Run | Yrd Mat Mat Sto Rec Scr Fac Ext Cet Arc Hub Fac Upp Upp Fac Upp Upp Res Used RIF Installer . | . . . . . . . . . . . . . . . . . . Robots Hacked 5 | . . . . . . . 2 . . . . . . 3 . . . Non-combat 3 | . . . . . . . . . . . . . . 3 . . . Combat 2 | . . . . . . . 2 . . . . . . . . . . Robot Hacks Applied 5 | . . . . . . . 2 . . . . . . 3 . . . parse_system 2 | . . . . . . . 2 . . . . . . . . . . no_distress 2 | . . . . . . . . . . . . . . 2 . . . find_station 1 | . . . . . . . . . . . . . . 1 . . . Relay Couplers Released . | . . . . . . . . . . . . . . . . . . Fabnet Peak Effective % . | . . . . . . . . . . . . . . . . . . Robots Rewired . | . . . . . . . . . . . . . . . . . . Allies Hacked . | . . . . . . . . . . . . . . . . . . Hacks Repelled . | . . . . . . . . . . . . . . . . . . Allies | -11 -10 -9 -9 -9 -9 -6 -6 -6 -6 -6 -5 -5 -5 -4 -4 -4 -3 -------- Run | Yrd Mat Mat Sto Rec Scr Fac Ext Cet Arc Hub Fac Upp Upp Fac Upp Upp Res Total Allies 9 | . . . . . . . 3 5 . . 1 . . . . . . Largest Group 5 | . . . . . . . 3 5 5 4 3 1 . . . . . Highest-Rated Group 480 | . . . . . . . 222 480 480 384 288 10 . . . . . Highest-Rated Ally 159 | . . . . . . . 159 147 96 96 96 10 . . . . . Total Orders 7 | . . . . . . 7 . . . . . . . . . . . EXPLORE 7 | . . . . . . 7 . . . . . . . . . . . Ally Attacks 253 | . . . . . . . 101 4 38 66 44 . . . . . . Total Damage 7718 | . . . . . . . 2653 175 1420 2286 1184 . . . . . . Kills 58 | . . . . . . . 25 1 3 16 13 . . . . . . Allies Corrupted 1 | . . . . . . . . . . . 1 . . . . . . Allies Melted . | . . . . . . . . . . . . . . . . . . Intel | -11 -10 -9 -9 -9 -9 -6 -6 -6 -6 -6 -5 -5 -5 -4 -4 -4 -3 ------- Run | Yrd Mat Mat Sto Rec Scr Fac Ext Cet Arc Hub Fac Upp Upp Fac Upp Upp Res Robot Analysis Total 7 | . . . . . 6 . . . . . 1 . . . . . . Derelict Logs Recovered 1 | . . . . . . . . . . . . . . . 1 . . Drone Launches 7 | . . . . . . 7 . . . . . . . . . . . Drone Recoveries . | . . . . . . . . . . . . . . . . . . Exploration | -11 -10 -9 -9 -9 -9 -6 -6 -6 -6 -6 -5 -5 -5 -4 -4 -4 -3 ------------- Run | Yrd Mat Mat Sto Rec Scr Fac Ext Cet Arc Hub Fac Upp Upp Fac Upp Upp Res Turns Passed 16727 | . 900 1245 2108 585 5522 993 926 776 307 643 718 137 9 426 561 104 767 Spaces Moved 8491 | 1 307 479 721 239 2194 485 412 258 120 237 1377 334 25 465 534 50 253 Core 566 | . . . . . . . 4 . . 1 . . . 7 430 35 89 Treads 5394 | . 251 479 721 239 2194 485 408 258 120 236 . . . . . . 3 Legs 323 | 1 26 . . . . . . . . . 31 . . . 104 . 161 Wheels 30 | . 30 . . . . . . . . . . . . . . . . Hover . | . . . . . . . . . . . . . . . . . . Flight 2178 | . . . . . . . . . . . 1346 334 25 458 . 15 . Fastest Speed 31 | 120 95 160 240 240 240 160 160 160 240 240 34 34 34 31 50 50 50 Average Speed 164 | 120 200 206 240 240 240 166 191 218 240 245 39 34 34 37 76 151 190 Slowest Speed 1750 | 120 480 240 240 240 240 240 1750 240 240 1650 260 34 34 700 450 355 500 Overloaded Moves . | . . . . . . . . . . . . . . . . . . Propulsion Burnouts . | . . . . . . . . . . . . . . . . . . Robots Hopped 6 | . . . . . . . . . . . 4 1 . 1 . . . Cave-ins Triggered 1 | . . . . . . . . . . . . . . . 1 . . Exploration Rate (%) 45 | 1 52 51 93 46 94 14 65 86 94 27 35 69 7 16 56 12 8 Regions Visited 17 Branch Regions 11 Pre-discovered Areas 1 | . . . . . . . . . . . . . . . 1 . . Known Exits Taken 3 | . . 1 . . 1 . . . . . 1 . . . . . . Unknown Exits Taken 14 | 1 1 . 1 1 . 1 1 1 1 1 . 1 1 1 1 1 . Scrap Searched 17 | . . . . . 10 . . . . . . . 1 . 5 1 . Spaces Dug . | . . . . . . . . . . . . . . . . . . Terrain Destroyed 99 | . . 9 10 . . . 1 45 . . . 6 . 20 2 5 1 Melee . | . . . . . . . . . . . . . . . . . . Projectile 35 | . . . . . . . 1 . . . . 6 . 20 2 5 1 AOE 64 | . . 9 10 . . . . 45 . . . . . . . . . Terrain Rammed . | . . . . . . . . . . . . . . . . . . Walls Destroyed . | . . . . . . . . . . . . . . . . . . Machines Disabled . | . . . . . . . . . . . . . . . . . . Actions | -11 -10 -9 -9 -9 -9 -6 -6 -6 -6 -6 -5 -5 -5 -4 -4 -4 -3 --------- Run | Yrd Mat Mat Sto Rec Scr Fac Ext Cet Arc Hub Fac Upp Upp Fac Upp Upp Res Total 10412 | . 478 605 921 251 2459 637 480 418 128 298 1553 343 24 676 653 63 425 Wait 867 | . 74 12 47 . 241 53 2 119 1 11 82 . . 131 53 . 41 Move 8463 | . 307 478 720 238 2193 484 411 257 119 236 1368 331 24 462 533 49 253 Hop 6 | . . . . . . . . . . . 4 1 . 1 . . . Pick Up 170 | . 12 19 28 . 8 20 7 2 2 4 24 . . 15 13 . 16 Fast Attach 21 | . . . . . 1 . . . . . 2 . . . 8 1 9 Attach 98 | . 8 7 10 . . 14 6 5 . 1 10 . . 7 13 . 17 Detach 7 | . . . . . 3 1 . 1 . . . . . 1 . . 1 Swap 73 | . 9 8 11 1 1 8 9 3 1 1 9 . . 10 1 . 1 Drop 79 | . 3 10 8 . 12 19 . . . 2 17 . . 7 . . 1 Fire 445 | . 65 71 65 . . 19 27 22 5 7 1 11 . 39 25 13 75 Melee 18 | . . . . . . . 2 . . 2 . . . 3 7 . 4 Ram 2 | . . . . . . . . . . . . . . . . . 2 Kick 3 | . . . . . . . . . . . . . . . . . 3 Crush 5 | . . . 2 . . . 1 . . . . . . . . . 2 Escape Stasis 38 | . . . 2 . . . . . . . 36 . . . . . . Rewire 14 | . . . 2 12 . . . . . . . . . . . . . Trap 60 | . . . . . . 19 7 . . 34 . . . . . . . Miscellaneous 43 | . . . 26 . . . 8 9 . . . . . . . . . Route ------- -11/Scrapyard -10/Materials (discovered 2 exits: *Mat x2) -9/Materials (discovered 3 exits: Min / *Sto x2) -9/Storage (discovered 2 exits: [*Mat] / *Rec) -9/Recycling -9/Scraptown (discovered 2 exits: *Fac x2) -6/Factory -6/Extension (discovered 3 exits: *Fac x2 / *Cet) -6/Cetus (discovered 2 exits: *Fac / *Arc) -6/Archives (discovered 3 exits: *Fac / *Hub x2) -6/Hub_04(d) -5/Factory (discovered 3 exits: *Fac / *Upp x2) -5/Upper Caves -5/Upper Caves -4/Factory -4/Upper Caves -4/Upper Caves -3/Research History --------- Turn | Location | Event 1 | -11/Scrapyard | Discovered new exit (range 0) 1 | -11/Scrapyard | Entered Materials 230 | -10/Materials | Discovered new exit (range 10) 326 | -10/Materials | Build established: Mutant 479 | -10/Materials | Destroyed 9 combat bots 515 | -10/Materials | Core integrity fell below 50% 547 | -10/Materials | Lost 5 parts (1p1n1u2w) 801 | -10/Materials | Discovered new exit (range 15) 901 | -10/Materials | Entered another Materials area 901 | -9/Materials | Evolved 2 slots: Propulsion x2 936 | -9/Materials | Build established: Scavenger-Mutant 1829 | -9/Materials | Identified exit to Mines 1829 | -9/Materials | Identified exit to Storage 2146 | -9/Materials | Entered Storage 2301 | -9/Storage | Lost 3 parts (1p2n) 2534 | -9/Storage | Core integrity fell below 50% 2622 | -9/Storage | Repaired Hvy. Assault Rifle 3464 | -9/Storage | Discovered new exit (range 10) 4246 | -9/Storage | Discovered new exit (range 3) 4254 | -9/Storage | Entered Recycling 4777 | -9/Recycling | Scanned before Scraplab entrance 4810 | -9/Recycling | Entered Scraplab 4830 | -9/Recycling | Discovered new exit (range 3) 4839 | -9/Recycling | Entered Scraptown 5281 | -9/Scraptown | Visited Assassins FH 5369 | -9/Scraptown | Visited UFD Registry 5385 | -9/Scraptown | Visited IN-MT5's Study 5468 | -9/Scraptown | Visited TADAMA 5542 | -9/Scraptown | Visited Shadow of the Wyrm 5717 | -9/Scraptown | Discovered new exit (range 5) 5735 | -9/Scraptown | Identified exit to Factory 6871 | -9/Scraptown | Visited Bundlers 7087 | -9/Scraptown | Visited Cyclists 7190 | -9/Scraptown | Registered with UFD as "Matrixwarp" 7311 | -9/Scraptown | Entered Cyclist Reading Room 7585 | -9/Scraptown | Visited Junk Repository 7685 | -9/Scraptown | Visited Science Guys 7774 | -9/Scraptown | Visited Analyses Database 7846 | -9/Scraptown | Visited Junk Repository 7934 | -9/Scraptown | Visited Research Penetration Think Tank 8166 | -9/Scraptown | Visited Abandonware Association 8193 | -9/Scraptown | Learned abandonware demo "REBOOT5.EXE" 8278 | -9/Scraptown | Visited Scrap Suit Storage 8310 | -9/Scraptown | Found Scrap Suit 8425 | -9/Scraptown | Discovered exit to Factory (range 5) 8656 | -9/Scraptown | Visited Observation Area 8754 | -9/Scraptown | Visited Curators Association 8816 | -9/Scraptown | Visited Cartography Club 9223 | -9/Scraptown | Found Surveybot 17 Chip 10361 | -9/Scraptown | Entered Factory 10361 | -6/Factory | Evolved 6 slots: Propulsion x2, Utility x4 11337 | -6/Factory | Discovered new exit (range 10) 11354 | -6/Factory | Entered Extension 11423 | -6/Extension | Rescued a captive Derelict 11424 | -6/Extension | Rescued a captive Derelict 11572 | -6/Extension | Rescued A7 11805 | -6/Extension | Energy Cycler disabled 11805 | -6/Extension | Rescued a captive Derelict 11805 | -6/Extension | Rescued a captive Derelict 11805 | -6/Extension | Rescued a captive Derelict 11805 | -6/Extension | Rescued a captive Derelict 11807 | -6/Extension | Rescued a captive Derelict 11809 | -6/Extension | Rescued a captive Derelict 11809 | -6/Extension | Rescued a captive Derelict 11812 | -6/Extension | Rescued a captive Derelict 11815 | -6/Extension | Rescued a captive Derelict 11839 | -6/Extension | Lost 3 parts (3n) 11932 | -6/Extension | Spotted B-75 Beast 11946 | -6/Extension | Spotted B-75 Beast 11957 | -6/Extension | Discovered new exit (range 19) 11962 | -6/Extension | Allies destroyed B-75 Beast 11985 | -6/Extension | Destroyed B-75 Beast 12014 | -6/Extension | Lost 4 parts (4n) 12099 | -6/Extension | System corruption reached 10% 12244 | -6/Extension | Discovered new exit (range 20) 12245 | -6/Extension | Discovered new exit (range 19) 12280 | -6/Extension | Entered Cetus 12280 | -6/Cetus | Accompanied by 1 ally (A7) 12285 | -6/Cetus | Acquired a Cetus Manufacturing Module code from A7 12301 | -6/Cetus | Spotted Cetus Guard 12301 | -6/Cetus | Spotted Cetus Guard 12303 | -6/Cetus | Spotted Cetus Guard 12307 | -6/Cetus | Allies destroyed Cetus Guard 12307 | -6/Cetus | Spotted Cetus Guard 12340 | -6/Cetus | Destroyed Cetus Guard 12349 | -6/Cetus | Destroyed Cetus Guard 12363 | -6/Cetus | Destroyed Cetus Guard 12366 | -6/Cetus | Lost 4 parts (1p1u2w) 12438 | -6/Cetus | Discovered new exit (range 19) 12650 | -6/Cetus | Started Cetus Manufacturing Module 12675 | -6/Cetus | Manufactured an Enhanced Grunt 12700 | -6/Cetus | Manufactured an Enhanced Grunt 12725 | -6/Cetus | Manufactured an Enhanced Grunt 12750 | -6/Cetus | Manufactured an Enhanced Grunt 12775 | -6/Cetus | Manufactured an Enhanced Grunt 13011 | -6/Cetus | Discovered new exit (range 20) 13030 | -6/Cetus | Security sweep announced 13056 | -6/Cetus | Entered Archives 13056 | -6/Archives | Accompanied by 5 allies 13128 | -6/Archives | Discovered new exit (range 20) 13137 | -6/Archives | Unable to access archive contents 13164 | -6/Archives | Unable to access archive contents 13176 | -6/Archives | Discovered new exit (range 15) 13198 | -6/Archives | Unable to access archive contents 13208 | -6/Archives | Discovered new exit (range 15) 13233 | -6/Archives | Unable to access archive contents 13363 | -6/Archives | Entered Hub_04(d) 13363 | -6/Hub_04(d) | Accompanied by 4 allies 13486 | -6/Hub_04(d) | Spotted B-75 Beast 13759 | -6/Hub_04(d) | Discovered new exit (range 13) 13957 | -6/Hub_04(d) | Network Hub disabled 14000 | -6/Hub_04(d) | Spotted Lightning 14006 | -6/Hub_04(d) | Entered Factory 14006 | -5/Factory | Accompanied by 3 allies 14006 | -5/Factory | Evolved 2 slots: Utility x1, Weapon x1 14034 | -5/Factory | Lost 4 parts (3n1u) 14412 | -5/Factory | Discovered new exit (range 10) 14444 | -5/Factory | Repaired Imp. Sensor Array 14474 | -5/Factory | Repaired Adv. System Restoration Module 14654 | -5/Factory | Identified exit to Upper Caves 14682 | -5/Factory | Build established: Hacker-Mutant 14724 | -5/Factory | Entered Upper Caves 14724 | -5/Upper Caves | Accompanied by 1 ally 14730 | -5/Upper Caves | Attracted the attention of an 0b10 checkpoint 14840 | -5/Upper Caves | Spotted B-75 Beast 14860 | -5/Upper Caves | Discovered new exit (range 3) 14861 | -5/Upper Caves | Entered another Upper Caves area 14868 | -5/Upper Caves | Discovered new exit (range 5) 14870 | -5/Upper Caves | Entered Factory 14870 | -4/Factory | Evolved 2 slots: Propulsion x2 14932 | -4/Factory | Lost 3 parts (1p2u) 15183 | -4/Factory | Fabricated Lgt. Quantum Reactor (x2) 15228 | -4/Factory | Build established: Scout 15232 | -4/Factory | Found Prototype Processor 15233 | -4/Factory | Identified Exp. Targeting Computer 15279 | -4/Factory | Discovered new exit (range 14) 15294 | -4/Factory | Released all parts (3) 15296 | -4/Factory | Entered Upper Caves 15324 | -4/Upper Caves | Lost 12 parts (1p4n5u2w) 15350 | -4/Upper Caves | Encountered a Warlord checkpoint 15646 | -4/Upper Caves | Attracted the attention of an 0b10 outpost 15685 | -4/Upper Caves | System corruption reached 10% 15691 | -4/Upper Caves | Core integrity fell below 50% 15702 | -4/Upper Caves | Crushed by falling debris 15713 | -4/Upper Caves | Core integrity fell below 20% 15734 | -4/Upper Caves | Learned location of Testing (-2) 15746 | -4/Upper Caves | Lost 17 parts (1p6n7u3w) 15755 | -4/Upper Caves | Discovered new exit (range 4) 15857 | -4/Upper Caves | Entered another Upper Caves area 15943 | -4/Upper Caves | Attracted the attention of an 0b10 checkpoint 15957 | -4/Upper Caves | Discovered new exit (range 10) 15961 | -4/Upper Caves | Entered Research 15961 | -3/Research | Evolved 2 slots: Utility x1, Weapon x1 15976 | -3/Research | Lost 3 parts (1n2w) 16165 | -3/Research | Build established: Mutant 16303 | -3/Research | Core integrity fell below 50% 16351 | -3/Research | Lost 7 parts (1p1n2u3w) 16594 | -3/Research | Build established: Scavenger-Mutant 16648 | -3/Research | Lost 3 parts (1p1u1w) 16721 | -3/Research | Core integrity fell below 20% 16728 | -3/Research | Destroyed by P-80 Master with Gamma Rifle Last Messages --------------- 16683_ Xenon Bombardment Thruster melted. 16683_ S-43 Plague destroyed. 16685_ Acquired Particle Reactor. 16689_ Acquired 20 matter. 16696_ Acquired Lgt. Antimatter Reactor. 16701_ P-80 Master suffers critical hit (Burn). 16711_ ALERT: Rogue bot located, Programmers report to Research Zone 5B. 16711_ Med. Treads destroyed. 16713_ System corrupted: Matter fused (-9). 16714_ Acquired 9 matter. 16714_ Field Laser destroyed. 16715_ Kicked P-80 Master. 16716_ Kicked P-80 Master out of the way. 16717_ Flexi-carbon Leg destroyed. 16717_ Kicked P-80 Master. 16718_ Flexi-carbon Leg destroyed. 16719_ Slammed into P-80 Master. 16726_ Adv. Heat Sink destroyed. 16726_ Slammed into P-80 Master. Map ----- +----------------------------------------------------+ | ????????????????????????????????????????? ?????? | | ????????????????????????????????????????? ??????? | | ?????????????????????????????????????????/#??????? | | ?????????????????????????????############ #??????? | | ?????????????????????????????+ !!#??????? | | ?????????????????????????????# !%#??####? | | ?????????????????????????????# !#? ?? | | ?????????????????????????????# !%# ???? | | ??????????????????????????? # ^# ????? | | ??????????????????????????? + =+ ?????? | | ??????????????????????????? # # ???? | | ??????????????????????????? # # ?? | | ??????????????????????????? ###+######## #?#####? | | ??????????????????????????? # #???# #??????? | | ??????????????????????????? # #???# #??????? | | ??????????????????????????? # =#???# #??????? | | ???????????????????????????#+# #???# #??????? | | ???????????????????????????# # #???# #??????? | | ???????????????????????????# # #???# #??????? | | ?????????????????????####### ####+####### #??????? | | ?????????????????????? #??# ## # #??????? | | ????????????????????????# #?## ## # #??????? | | ????????????????????????# ### # # #??????? | | ????????????????????????# + # ######## | | ????????????????????????#p###### # # + # | | ???????????????????????##@########## # # # | | ????????????????#+######p*%# ! ## # # # | | ?????????? p %%p% ## # + # | | ?????????? ###### #% ## # # # | | ???????????????????????##s## ####### # # | | ????????????????????????#m## #?????# ######## | | ???????????????????????? s + #?????# #??????? | | ??????????????????????? s s########?????# #??????? | | ?????????????????????? ?????????????# #??????? | | ????????????????????? = ?????????????# #??????? | | ????????????????????# ?????????????# ######## | | ????????????????????#? ! ?????????????# # # | | ?????????????????????#+####??############ # # | | ?????????????????????? ??? # # | | ????????????????????? ??? + # | | ?????????????????????????????############ # # | | ????????????????????????????????????????# # # | | ????????????????????????????????????????# ######## | | ????????????????????????????????????????# #??????? | | ????????????????????????????????????????# #??????? | | ????????????????????????????????????????# #??????? | | ????????????????????????????????????????# #??????? | | ????????????????????????????????????????# #??????? | | ????????????????????????????????????????# #??????? | | ?????????????????????????????????######## #??????? | +----------------------------------------------------+ Best States ------------- Heat Dissipation 65 Energy Generation 25 Energy Capacity 340 Matter Stores 300 Matter Capacity 300 Sight Range 22 Robot Scan Range 16 Terrain Scan Range 20 Terrain Scan Density 10 Armor Coverage 225 Weapon Cycling 20 Phase Shifting 5 Evasion (%) 63 Core Analysis 6 Recoil Reduction 6 Kinecelleration 40 Salvage Targeting 2 Offensive Hacking 24 Defensive Hacking 12 Item Schematics ----------------- Imp. Light Cannon | -9/Storage | Hacked Hrd. Medium Armor Plating | -9/Storage | Hacked Beam Rifle | -9/Recycling | Hacked Com. Matter Pod | -9/Recycling | Hacked Adv. System Restoration Module | -5/Factory | Hacked Robot Schematics ------------------ None Fabricated ------------ Lgt. Quantum Reactor | x2 | -4/Factory | Preloaded Alien Tech Used ----------------- None Achievements -------------- Explorer Project G-00 Prolific Hacker Release The Drones! Challenges ------------ None Game ------ Seed TeslaRingSuite Manual? 0 Play Time 02:21:15 Cumulative 42.0 hours Start 2024.08.11 @ 16:51:15 End 2024.08.11 @ 19:28:40 Sessions 1 Manual Loads 0 Difficulty Rogue Special Mode None Game No. 56 Rogue 34 Adventurer 20 Explorer 2 Win Type - Total 0 Types 0/0/0/0/0/0/0/0/0 Lore% 34 Gallery% 34 Achievement% 33 Wizard Run 0 Options --------- Layout 1 ASCII 0 Keyboard 0 Movement Numpad Keybinds 0 Fullscreen 2 Font 24/Smallcaps Map View 50x35 Zoom Use 0% Tactical HUD 1 Map Filters NONE Filters NONE Steam 1 RUN: 868e6d48-8a7e-44f4-a6e2-fa802acc9ef2